fUSD/lending_fUSD_20260305
["ID","MTS","AMOUNT","RATE_DAILY","PERIOD"]
[407746970,1772739032043,-1000.0,0.00018889,2]
[407746971,1772739032053,-151.0,0.00018889,2]
[407746972,1772739032063,-151.0,0.00018889,2]
[407746973,1772739032072,-151.0,0.00018889,2]
[407746974,1772739032081,-151.0,0.00018889,2]
[407746975,1772739032091,-151.0,0.00018889,2]
[407746976,1772739032101,-151.0,0.00018889,2]
[407746977,1772739032111,-693.3919763,0.00018889,2]
[407746978,1772739032121,-151.0,0.00018889,2]
[407746979,1772739032132,-151.0,0.00018889,2]
[407746980,1772739032144,-151.0,0.00018889,2]
[407746981,1772739032154,-151.0,0.00018889,2]
[407746982,1772739032164,-151.0,0.00018889,2]
[407746983,1772739032174,-151.0,0.00018889,2]
[407746984,1772739032188,-151.0,0.00018897,2]
[407746985,1772739032198,-269.12323364,0.00018899,2]
[407746986,1772739032209,-500.0,0.00018899,2]
[407746987,1772739032221,-500.0,0.00018899,2]
[407746988,1772739032231,-524.53475046,0.00018899,2]
[407746989,1772739032241,-500.0,0.00018899,2]
[407746990,1772739032250,-500.0,0.00018899,2]
[407746991,1772739032260,-500.0,0.00018899,2]
[407746992,1772739032271,-500.0,0.00018899,2]
[407746993,1772739032282,-500.0,0.00018899,2]
[407746994,1772739032292,-153.61648564,0.00018899,2]
[407746995,1772739032302,-1011.0,0.000189,2]
[407746996,1772739032313,-598.0,0.000189,2]
[407746997,1772739032323,-1000.0,0.000189,6]
[407746998,1772739032333,-3823.4471099,0.000189,2]
[407746999,1772739032344,-78.25446273,0.00018922,2]
[407747000,1772739032362,-300.99073036,0.00018922,2]
[407747001,1772739032374,-1085.39999998,0.00018922,2]
[407747002,1772739032386,-1172.37552332,0.00018922,2]
[407747003,1772739032399,-729.99509692,0.00018922,2]
[407747004,1772739032420,-6924.08123556,0.00018922,2]
[407747005,1772739032431,-719.04747942,0.00018944,2]
[407747006,1772739032442,-272.78563702,0.00018957,2]
[407747007,1772739032452,-745.65223616,0.00018999,2]
[407747008,1772739032463,-10291.09704887,0.00019044,2]
[407747009,1772739032473,-773.2413689,0.00019054,2]
[407747010,1772739032483,-801.85129955,0.00019109,2]
[407747011,1772739032493,-272.78563702,0.00019114,2]
[407747012,1772739032503,-184.0,0.00019148,2]
[407747013,1772739032513,-831.51979763,0.00019164,2]
[407747014,1772739032523,-10291.09704887,0.00019167,2]
[407747015,1772739032532,-206.59,0.00019173,2]
[407747016,1772739032542,-433.92107206,0.00019186,2]
[407747017,1772739032552,-350.0,0.00019188,2]
[407747018,1772739032562,-277.8803,0.0001919,2]
[407747019,1772739032572,-862.28603014,0.00019219,2]
[407747020,1772739032582,-156.06,0.00019228,2]
[407747021,1772739032591,-272.78563702,0.00019271,2]
[407747022,1772739032601,-894.19061326,0.00019274,2]
[407747023,1772739032611,-10291.09704887,0.00019289,2]
[407747024,1772739032621,-927.27566595,0.00019329,2]
[407747025,1772739032630,-961.58486559,0.00019384,2]
[407747026,1772739032640,-1200.0,0.000194,7]
[407747027,1772739032650,-10291.09704887,0.00019411,2]
[407747028,1772739032659,-272.78563702,0.00019429,2]
[407747029,1772739032669,-1000.0,0.00019437,2]
[407747030,1772739032679,-997.16350561,0.00019439,2]
[407747031,1772739032688,-200.0,0.000195,7]
[407747032,1772739032698,-5597.17659619,0.00019533,2]
[407747033,1772739032710,-1249.03944653,0.00019533,2]
[407747034,1772739032730,-638.34053726,0.00019533,2]
[407747035,1772739032741,-797.59445327,0.00019533,2]
[407747036,1772739032757,-1182.23847243,0.00019533,2]
[407747037,1772739032769,-826.70754319,0.00019533,2]
[407747038,1772739032780,-322.0529362,0.00019574,2]
[407747047,1772739037571,-77.7470638,0.00019574,2]
[407747048,1772739037581,-272.78563702,0.00019586,2]
[407747049,1772739037589,-159.27955235,0.000196,7]
[407747050,1772739037601,-40.72044765,0.000196,7]
[407747051,1772739037610,-161.371085,0.00019627,2]
[407747052,1772739037620,-8350.37433983,0.00019656,2]
[407747053,1772739037685,-1940.72270904,0.00019656,2]
[407747054,1772739037694,-1000.0,0.00019699,2]
[407747055,1772739037704,-1567.35252774,0.000197,2]
[407747056,1772739037714,-200.0,0.000197,7]
[407747057,1772739037723,-2363.06,0.0001971,2]
[407747058,1772739037732,-272.78563702,0.00019743,2]
[407747059,1772739037741,-500.0,0.00019762,2]
[407747060,1772739037751,-10291.09704887,0.00019778,2]
[407747061,1772739037760,-200.0,0.000198,7]
[407747062,1772739037769,-500.0,0.00019819,2]
[407747063,1772739037778,-500.0,0.00019819,2]
[407747064,1772739037787,-200.0,0.0001984,2]
[407747065,1772739037797,-172.70211477,0.00019877,2]
[407747066,1772739037806,-160.0,0.00019877,2]
[407747067,1772739037814,-189.66427151,0.000199,2]
[407747068,1772739037824,-700.0,0.000199,7]
[407747069,1772739037833,-272.78563702,0.000199,2]
[407747070,1772739037842,-982.64445827,0.000199,2]
[407747071,1772739037851,-4559.94250909,0.000199,2]
[407747072,1772739037860,-10291.09704887,0.000199,2]
[407747073,1772739037870,-2131.6696927,0.000199,2]
[407747074,1772739037879,-1000.0,0.00019985,2]
[407747075,1772739037888,-431.0454432,0.00019987,2]
[407747076,1772739037897,-167.09877526,0.0001999,2]
[407747077,1772739037906,-151.0,0.00019997,2]
[407747078,1772739037916,-500.0,0.00019999,2]
[407747079,1772739037925,-500.0,0.00019999,2]
[407747080,1772739037934,-500.0,0.00019999,2]
[407747081,1772739037944,-500.0,0.00019999,2]
[407747082,1772739037953,-500.0,0.00019999,2]
[407747083,1772739037962,-500.0,0.00019999,2]
[407747084,1772739037971,-283.75352511,0.00019999,2]
[407747085,1772739037980,-374879.40487268,0.0002,2]
[407747086,1772739038000,-1834.11690795,0.0002,2]
[407747087,1772739038013,-2766.56,0.0002,2]
[407747088,1772739038024,-1104.41822772,0.0002,2]
[407747090,1772739039359,-456772.48221019,0.0002,2]
[407747092,1772739040439,-1494.86680671,0.0002,2]
[407747093,1772739040451,-4779.76509798,0.0002,2]
[407747094,1772739040463,-4580.05,0.0002,2]
[407747095,1772739040478,-801.42,0.0002,2]
[407747096,1772739040501,-42573.89217123,0.0002,2]
[407747097,1772739040512,-410.98414085,0.0002,2]
[407747098,1772739040525,-488.27091467,0.0002,2]
[407747099,1772739040544,-97391.87683908,0.0002,2]
[407747100,1772739040556,-2784.03994496,0.0002,2]
[407747101,1772739040567,-4332.2909775,0.0002,2]
[407747102,1772739040586,-2444182.09408383,0.0002,2]
[407747103,1772739040597,-420.81679979,0.0002,2]
[407747121,1772739044506,-400.0,0.0002,6]
[407747122,1772739044516,-1067.6817414,0.0002,2]
[407747123,1772739044774,-128316.45907274,0.0002,2]
[407747124,1772739044786,-5632.24770009,0.0002,2]
[407747125,1772739044884,-516.40474172,0.0002,2]
[407747126,1772739044896,-534.26111805,0.0002,2]
[407747127,1772739044907,-137409.99999998,0.0002,2]
[407747128,1772739044919,-1100.0,0.0002,2]
[407747135,1772739045480,-204.26334507,0.000199,2]
[407747136,1772739045489,-644.73665493,0.0002,2]
[407747138,1772739045747,-600.0,0.0002,2]
[407747144,1772739072827,250.0,0.00015,2]
[407747145,1772739077111,492.51935192,0.00011344,2]
[407747146,1772739142264,500.0,0.00012,2]
[407747147,1772739142762,500.0,0.00012,2]
[407747148,1772739143288,500.0,0.00012,2]
[407747149,1772739143787,500.0,0.00012,2]
[407747150,1772739144250,500.0,0.00012,2]
[407747151,1772739144755,500.0,0.00011291,2]
[407747152,1772739144875,500.0,0.00012,2]
[407747153,1772739145378,500.0,0.00012,2]
[407747154,1772739145483,500.0,0.00012,2]
[407747155,1772739145770,500.0,0.00011291,2]
[407747156,1772739145874,585.23545408,0.00011291,2]
[407747157,1772739145980,500.0,0.00011291,2]
[407747158,1772739146283,500.0,0.00011291,2]
[407747159,1772739147574,500.0,0.00011291,2]
[407747160,1772739149231,500.0,0.00012,2]
[407747161,1772739149277,500.0,0.00012,2]
[407747162,1772739149464,500.0,0.00012,2]
[407747163,1772739149571,500.0,0.00011291,2]
[407747164,1772739149600,869.88788903,0.00012,2]
[407747165,1772739149957,500.0,0.00012,2]
[407747166,1772739150135,857.76007336,0.00012,2]
[407747167,1772739150429,500.0,0.00011291,2]
[407747168,1772739150950,804.99050202,0.00011291,2]
[407747171,1772739752695,156.69,0.00017,120]
[407747172,1772739973257,175.193572,0.00016144,7]
[407747174,1772740170155,-247.87566628,0.0001647,2]
[407747175,1772740170175,-194.0139528,0.00016484,2]
[407747176,1772740170196,-2500.0,0.00016484,2]
[407747177,1772740170216,-774.15007218,0.00016498,2]
[407747178,1772740170238,-678.52346066,0.00016526,2]
[407747179,1772740170262,-166.66,0.00016526,2]
[407747180,1772740170283,-400.0,0.00016586,5]
[407747181,1772740170303,-300.0,0.00016628,2]
[407747182,1772740170325,-143.08519024,0.00016628,2]
[407747206,1772740232004,-834.3403945,0.00016628,2]
[407747207,1772740232016,-365.6596055,0.00016628,2]
[407747208,1772740232026,-2500.0,0.00016629,2]
[407747209,1772740232035,-1200.0,0.00016629,2]
[407747210,1772740232045,-2500.0,0.00016689,2]
[407747211,1772740232055,-300.0,0.00016699,2]
[407747212,1772740232064,-300.0,0.00016699,2]
[407747213,1772740232075,-300.0,0.00016699,2]
[407747214,1772740232084,-920.94,0.000167,2]
[407747215,1772740232093,-151.21,0.000167,2]
[407747216,1772740232103,-159.58,0.0001679,2]
[407747217,1772740232112,-166.66,0.00016874,2]
[407747218,1772740232122,-2000.0,0.0001691,2]
[407747219,1772740232132,-169.32,0.0001694,2]
[407747220,1772740232141,-204.96234337,0.0001698,2]
[407747221,1772740232151,-200.0,0.00016994,2]
[407747222,1772740232161,-300.0,0.00017,2]
[407747223,1772740232171,-746.0,0.00017006,2]
[407747224,1772740232183,-1066.0,0.00017025,2]
[407747225,1772740232194,-176.06078434,0.00017025,2]
[407747226,1772740232205,-159.58,0.0001706,2]
[407747227,1772740232216,-1600.0,0.00017108,2]
[407747228,1772740232227,-3240.0,0.00017121,2]
[407747229,1772740232238,-166.66,0.00017222,2]
[407747230,1772740232248,-247.87566626,0.00017275,2]
[407747231,1772740232258,-159.58,0.0001733,2]
[407747232,1772740232268,-9439.89,0.00017509,2]
[407747233,1772740232277,-150.0,0.00017509,2]
[407747234,1772740232286,-166.66,0.0001757,2]
[407747235,1772740232295,-550.0,0.0001757,2]
[407747236,1772740232306,-159.58,0.000176,2]
[407747237,1772740232315,-800.0,0.00017808,2]
[407747238,1772740232325,-500.0,0.00017839,2]
[407747239,1772740232334,-175.93063674,0.00017839,2]
[407747240,1772740232344,-159.58,0.0001787,2]
[407747241,1772740232362,-166.66,0.00017918,2]
[407747242,1772740232374,-200.0,0.00018042,2]
[407747243,1772740232384,-247.87566626,0.00018079,2]
[407747244,1772740232394,-250.0,0.00018117,2]
[407747245,1772740232403,-300.0,0.00018117,2]
[407747246,1772740232412,-250.0,0.00018117,2]
[407747247,1772740232422,-5000.0,0.00018117,2]
[407747248,1772740232433,-250.0,0.00018117,2]
[407747249,1772740232444,-5000.0,0.00018117,2]
[407747250,1772740232453,-193.0,0.00018117,2]
[407747251,1772740232463,-2500.0,0.00018117,2]
[407747252,1772740232472,-159.58,0.0001814,2]
[407747253,1772740232482,-414.0,0.00018168,2]
[407747254,1772740232492,-1121.0,0.0001817,2]
[407747255,1772740232504,-500.0,0.00018179,2]
[407747256,1772740232517,-300.0,0.00018179,2]
[407747257,1772740232526,-2351.47976923,0.00018179,2]
[407747258,1772740232535,-193.0,0.00018179,2]
[407747259,1772740232546,-2500.0,0.00018179,2]
[407747260,1772740232555,-5000.0,0.00018179,2]
[407747261,1772740232564,-500.0,0.00018179,2]
[407747262,1772740232574,-300.0,0.00018245,2]
[407747263,1772740232583,-420.0,0.00018245,2]
[407747264,1772740232593,-420.0,0.00018245,2]
[407747265,1772740232602,-1680.0,0.00018259,2]
[407747266,1772740232611,-166.66,0.00018266,2]
[407747267,1772740232620,-5000.0,0.00018291,2]
[407747268,1772740232630,-2500.0,0.00018291,2]
[407747269,1772740232639,-15005.37670019,0.0001836,2]
[407747270,1772740232648,-159.58,0.0001841,2]
[407747271,1772740232658,-1000.0,0.00018433,2]
[407747272,1772740232667,-217.69,0.00018469,2]
[407747273,1772740232677,-1641.09353432,0.00018589,2]
[407747274,1772740232687,-7500.01,0.000186,2]
[407747275,1772740232696,-935.0,0.00018659,2]
[407747276,1772740232705,-159.58,0.0001868,2]
[407747277,1772740232714,-151.0,0.00018689,2]
[407747278,1772740232728,-500.0,0.00018689,2]
[407747279,1772740232738,-151.0,0.00018689,2]
[407747280,1772740232748,-500.0,0.00018689,2]
[407747281,1772740232757,-151.0,0.00018689,2]
[407747282,1772740232767,-500.0,0.00018689,2]
[407747283,1772740232777,-151.0,0.00018689,2]
[407747284,1772740232786,-500.0,0.00018689,2]
[407747285,1772740232796,-151.0,0.00018689,2]
[407747286,1772740232805,-500.0,0.00018689,2]
[407747287,1772740232815,-500.0,0.00018689,2]
[407747288,1772740232824,-500.0,0.00018689,2]
[407747289,1772740232834,-500.0,0.00018689,2]
[407747290,1772740232845,-500.0,0.00018689,2]
[407747291,1772740232854,-500.0,0.00018689,2]
[407747292,1772740232863,-500.0,0.00018689,2]
[407747293,1772740232873,-500.0,0.00018689,2]
[407747294,1772740232882,-500.0,0.00018689,2]
[407747295,1772740232891,-500.0,0.00018689,2]
[407747296,1772740232902,-500.0,0.00018689,2]
[407747297,1772740232913,-200.0,0.00018689,2]
[407747298,1772740232927,-500.0,0.00018689,2]
[407747299,1772740232937,-500.0,0.00018689,2]
[407747300,1772740232947,-500.0,0.00018689,2]
[407747301,1772740232958,-500.0,0.00018689,2]
[407747302,1772740232969,-500.0,0.00018689,2]
[407747303,1772740232979,-500.0,0.00018689,2]
[407747304,1772740232990,-500.0,0.00018689,2]
[407747305,1772740233003,-500.0,0.00018689,2]
[407747306,1772740233014,-151.0,0.00018689,2]
[407747307,1772740233025,-151.0,0.00018689,2]
[407747308,1772740233036,-151.0,0.00018689,2]
[407747309,1772740233045,-234.76486537,0.00018689,2]
[407747310,1772740233055,-1000.0,0.00018699,2]
[407747311,1772740233065,-7037.88536732,0.000187,2]
[407747312,1772740233075,-155.77705765,0.000187,2]
[407747313,1772740233084,-1235.44294785,0.000187,2]
[407747314,1772740233094,-3049.91638893,0.000187,2]
[407747315,1772740233103,-217.69,0.00018743,2]
[407747316,1772740233117,-544.0,0.00018767,2]
[407747317,1772740233127,-445.31379225,0.0001879,2]
[407747318,1772740233137,-241.5019173,0.0001879,2]
[407747319,1772740233147,-845.02,0.0001879,3]
[407747320,1772740233157,-151.0,0.00018797,2]
[407747321,1772740233167,-188.38626355,0.00018799,2]
[407747322,1772740233177,-500.0,0.00018799,2]
[407747323,1772740233188,-500.0,0.00018799,2]
[407747324,1772740233198,-315.29926308,0.00018799,2]
[407747325,1772740233208,-500.0,0.00018799,2]
[407747326,1772740233218,-327.65543005,0.00018799,2]
[407747327,1772740233228,-500.0,0.00018799,2]
[407747328,1772740233238,-169.74473996,0.00018799,2]
[407747329,1772740233248,-29795.64384007,0.000188,2]
[407747330,1772740233264,-1721.15278296,0.000188,2]
[407747331,1772740233276,-273.719,0.000188,2]
[407747332,1772740233288,-1037.25,0.000188,2]
[407747333,1772740233305,-709.99,0.000188,2]
[407747334,1772740233321,-133048.47577487,0.000188,2]
[407747335,1772740233333,-5542.24365958,0.000188,2]
[407747336,1772740233346,-297049.85882193,0.000188,2]
[407747337,1772740233358,-7150.644345,0.000188,2]
[407747338,1772740233374,-960.87056259,0.000188,2]
[407747339,1772740233398,-1085.84254698,0.000188,2]
[407747340,1772740233410,-20565.79701383,0.000188,2]
[407747342,1772740237743,-194.27669144,0.000187,2]
[407747343,1772740237753,-58156.36938822,0.000188,2]
[407747344,1772740237766,-490.73698822,0.000188,2]
[407747345,1772740237780,-69000.00000001,0.000188,2]
[407747346,1772740237802,-972.43080907,0.000188,2]
[407747347,1772740237814,-2069.39064856,0.000188,2]
[407747348,1772740237827,-1159.41324796,0.000188,2]
[407747349,1772740237853,-3239.94984,0.000188,2]
[407747350,1772740237866,-1553.52,0.000188,2]
[407747359,1772740239950,-500.0,0.0001637,2]
[407747360,1772740239961,-5.0,0.000188,2]
[407747361,1772740240212,-4756.99305219,0.000188,2]
[407747362,1772740240224,-1063.79715376,0.000188,2]
[407747363,1772740240424,-259964.13347106,0.000188,2]
[407747371,1772740242960,-18060.47686663,0.000188,2]
[407747372,1772740242978,-1254.59666868,0.000188,2]
[407747378,1772740245687,-2000.0,0.000188,2]
[407747379,1772740245741,-8221.43061194,0.000188,2]
[407747380,1772740245752,-646.0500007,0.000188,2]
[407747383,1772740335991,500.0,0.00012,2]
[407747384,1772740336315,500.0,0.00012,2]
[407747385,1772740336462,500.0,0.00012,2]
[407747386,1772740336494,500.0,0.00012,2]
[407747387,1772740336704,500.0,0.00012,2]
[407747388,1772740336734,597.87403026,0.00012,2]
[407747389,1772740336962,500.0,0.00012,2]
[407747390,1772740336992,500.0,0.00011291,2]
[407747391,1772740337192,500.0,0.00012,2]
[407747392,1772740337466,925.75598445,0.00011291,2]
[407747393,1772740337509,823.73765731,0.00011291,2]
[407747394,1772740337711,500.0,0.00012,2]
[407747395,1772740338202,500.0,0.00012,2]
[407747396,1772740338666,500.0,0.00012,2]
[407747397,1772740339145,500.0,0.00011291,2]
[407747398,1772740339615,500.0,0.00011291,2]
[407747399,1772740340144,500.0,0.00011291,2]
[407747400,1772740340638,529.9310008,0.00011291,2]
[407747401,1772740340841,500.0,0.00012,2]
[407747402,1772740341050,500.0,0.00012,2]
[407747403,1772740342133,500.0,0.00012,2]
[407747404,1772740342180,500.0,0.00012,2]
[407747405,1772740342252,500.0,0.00012,2]
[407747406,1772740342321,500.0,0.00012,2]
[407747407,1772740342391,500.0,0.00012,2]
[407747408,1772740342538,500.0,0.00012,2]
[407747409,1772740342792,500.0,0.00012,2]
[407747410,1772740343056,500.0,0.00011291,2]
[407747411,1772740343313,500.0,0.00012,2]
[407747412,1772740343582,500.0,0.00011291,2]
[407747413,1772740343663,500.0,0.00012,2]
[407747414,1772740343710,500.0,0.00012,2]
[407747415,1772740343778,500.0,0.00012,2]
[407747416,1772740344121,500.0,0.00011291,2]
[407747417,1772740344181,500.0,0.00012,2]
[407747418,1772740344252,500.0,0.00012,2]
[407747419,1772740344677,712.77484935,0.00011291,2]
[407747420,1772740344735,500.0,0.00012,2]
[407747421,1772740344770,500.0,0.00012,2]
[407747422,1772740345212,500.0,0.00011291,2]
[407747423,1772740345275,500.0,0.00012,2]
[407747424,1772740345671,500.0,0.00011291,2]
[407747425,1772740346315,500.0,0.00011291,2]
[407747426,1772740346831,500.0,0.00011291,2]
[407747427,1772740347285,500.0,0.00012,2]
[407747428,1772740347330,500.0,0.00011291,2]
[407747429,1772740347824,500.0,0.00011291,2]
[407747430,1772740347861,500.0,0.00011291,2]
[407747431,1772740348139,500.0,0.00012,2]
[407747432,1772740348534,500.0,0.00012,2]
[407747433,1772740348567,500.0,0.00012,2]
[407747434,1772740348606,500.0,0.00011291,2]
[407747435,1772740348638,500.0,0.00012,2]
[407747436,1772740348667,500.0,0.00012,2]
[407747437,1772740348704,500.0,0.00012,2]
[407747438,1772740348757,500.0,0.00012,2]
[407747439,1772740348796,500.0,0.00011291,2]
[407747440,1772740348860,500.0,0.00012,2]
[407747441,1772740349024,500.0,0.00012,2]
[407747442,1772740349057,500.0,0.00011291,2]
[407747443,1772740349210,500.0,0.00012,2]
[407747444,1772740349288,500.0,0.00011291,2]
[407747445,1772740349350,500.0,0.00011291,2]
[407747446,1772740349499,500.0,0.00012,2]
[407747447,1772740349683,500.0,0.00011291,2]
[407747448,1772740349805,500.0,0.00011291,2]
[407747449,1772740349988,500.0,0.00012,2]
[407747450,1772740350168,501.29185321,0.00011291,2]
[407747451,1772740350303,500.0,0.00011291,2]
[407747452,1772740350508,500.0,0.00011291,2]
[407747453,1772740351887,500.0,0.00011291,2]
[407747454,1772740352949,500.0,0.00011291,2]
[407747455,1772740379745,506.0,0.00014,2]
[407747459,1772740601162,158.16,0.00015823,2]
[407747460,1772740601616,158.16,0.00015823,2]
[407747461,1772740602332,158.16,0.00015823,2]
[407747462,1772740603153,158.16,0.00015823,2]
[407747463,1772740635627,500.0,0.00012,2]
[407747464,1772740639878,500.0,0.00012,2]
[407747465,1772740640357,500.0,0.00011291,2]
[407747466,1772740647022,500.0,0.00012,2]
[407747467,1772740647101,500.0,0.00012,2]
[407747468,1772740647316,500.0,0.00012,2]
[407747469,1772740647489,500.0,0.00012,2]
[407747470,1772740647672,500.0,0.00011291,2]
[407747471,1772740647990,500.0,0.00011291,2]
[407747472,1772740648479,500.0,0.00011291,2]
[407747473,1772740811151,5011.61,0.00015471,2]
[407747474,1772740826953,2059.42204629,0.00015,2]
[407747475,1772740827602,165.1,8.307e-05,2]
[407747476,1772740828158,165.1,9.494e-05,2]
[407747477,1772740828478,165.1,0.00010681,2]
[407747478,1772740829205,165.1,0.00011868,2]
[407747479,1772740832746,165.1,0.00013054,2]
[407747480,1772740833010,165.1,0.00014241,2]
[407747481,1772740833449,165.1,0.00015428,2]
[407747482,1772740854940,12359.89,0.000162,5]
[407747485,1772740862591,1517.64,0.000153,2]
[407747486,1772740866364,8017.50082415,0.00015,2]
[407747487,1772740876250,250.0,0.00015,2]
[407747488,1772740901941,151.0,0.00015823,2]
[407747489,1772740913741,1500.0,0.00014,2]
[407747490,1772740928015,10368.1504218,0.0001439,2]
[407747491,1772740931440,308.89080587,0.000125,2]
[407747492,1772740952473,510.61473622,0.000154,2]
[407747493,1772740955777,2250.28070252,0.00015807,2]
[407747494,1772740956059,1832.45,0.00015471,2]
[407747495,1772740960618,4333.58,0.00015471,2]
[407747496,1772741090211,140938.0,0.00016157,2]
[407747497,1772741120830,12852.34595127,0.00016157,2]
[407747498,1772741120897,2729.55164584,0.00016157,2]
[407747499,1772741120990,8679.64062478,0.00016157,2]
[407747500,1772741121025,425.87434013,0.00016157,2]
[407747501,1772741139401,-200.0,0.0001634,2]
[407747502,1772741139422,-428.7362496,0.0001637,2]
[407747503,1772741145491,1000.0,0.00016188,2]
[407747504,1772741159117,-71.2637504,0.0001637,2]
[407747505,1772741159138,-300.0,0.00016454,2]
[407747506,1772741159160,-300.0,0.00016454,2]
[407747507,1772741159186,-1200.0,0.00016454,2]
[407747508,1772741159207,-300.0,0.00016454,2]
[407747509,1772741159229,-350.0662126,0.00016455,2]
[407747510,1772741159250,-4927.15914236,0.00016455,2]
[407747511,1772741159271,-300.0,0.0001654,2]
[407747512,1772741159292,-150.0,0.0001654,30]
[407747513,1772741159312,-362.27852797,0.000166,2]
[407747514,1772741159334,-200.0,0.00016615,2]
[407747515,1772741159356,-165.1,0.00016615,2]
[407747516,1772741159378,-166.63,0.00016712,2]
[407747517,1772741159399,-2078.59273075,0.00016719,2]
[407747518,1772741159424,-400.12,0.0001679,2]
[407747519,1772741159446,-3376.654,0.000169,2]
[407747520,1772741159467,-154.636,0.000169,2]
[407747521,1772741159489,-609.73051546,0.000169,2]
[407747522,1772741159510,-550.0,0.0001691,2]
[407747523,1772741159533,-16212.12915622,0.00016911,2]
[407747524,1772741159553,-23700.12547878,0.00017,2]
[407747525,1772741172969,190.484,0.0001624,2]
[407747526,1772741231089,-2005.75,0.00016497,2]
[407747527,1772741231115,-1852.42,0.00016505,2]
[407747528,1772741231143,-550.0,0.00016999,2]
[407747529,1772741231169,-42824.14268273,0.00017,2]
[407747530,1772741236091,500.0,0.00012,2]
[407747531,1772741240095,-400.0,0.000167,6]
[407747532,1772741240116,-800.0,0.000168,6]
[407747533,1772741240137,-1200.0,0.000169,6]
[407747534,1772741240157,-30712.42669722,0.00017,2]
[407747535,1772741253404,-53204.10466675,0.00017,2]
[407747539,1772741347116,-217.35,0.00016463,2]
[407747540,1772741347139,-300.0,0.00016999,2]
[407747541,1772741347160,-550.0,0.00016999,2]
[407747542,1772741347180,-36884.11628,0.00017,2]
[407747543,1772741364077,-408.8,0.0001679,2]
[407747544,1772741364104,-42161.73463415,0.00016811,2]
[407747545,1772741369082,-6287.243508,0.00016811,2]
[407747548,1772741431713,-2119.90398,0.00016711,2]
[407747553,1772741431769,-28243.0837303,0.00016711,2]
[407747554,1772741431779,-656.50643884,0.000168,2]
[407747555,1772741431789,-234.63590618,0.00016801,2]
[407747556,1772741431799,-1200.0,0.0001681,2]
[407747557,1772741431808,-229.0,0.0001681,2]
[407747558,1772741431818,-1036392.97763762,0.00016811,2]
[407747559,1772741431830,-125341.5689474,0.00016811,2]
[407747560,1772741431841,-198263.52355327,0.00016811,2]
[407747561,1772741431855,-208771.16185234,0.00016811,2]
[407747562,1772741431871,-1254.41808677,0.00016811,2]
[407747563,1772741431882,-981.47839901,0.00016811,2]
[407747564,1772741431898,-100389.90654951,0.00016811,2]
[407747565,1772741431909,-2170.0,0.00016811,2]
[407747566,1772741431922,-678.45,0.00016811,2]
[407747567,1772741431935,-16054.53942905,0.00016811,2]
[407747572,1772741431992,-65487.11139639,0.00016811,2]
[407747574,1772741432004,-633.09337915,0.00016811,2]
[407747584,1772741437838,-1606.43883667,0.00016811,2]
[407747585,1772741437850,-519.57820263,0.00016811,2]